Workbook

Sheet Anexo I - BO
A3: MUNICÍPIO DE SANTO ANTONIO DO ARACANGUÁ
A4: RELATÓRIO RESUMIDO DA EXECUÇÃO ORÇAMENTÁRIA
A5: BALANÇO ORÇAMENTÁRIO
A6: ORÇAMENTOS FISCAL E DA SEGURIDADE SOCIAL
A7: PERÍODO:- Janeiro a Dezembro de 2012 - BIMESTRE:- Novembro - Dezembro
A9: RREO - Anexo I (LRF, Art. 52, inciso I, alíneas "a" e "b" do inciso II e §1º) | J9: 1
B10: PREVISÃO | C10: PREVISÃO | D10: RECEITAS REALIZADAS | J10: SALDO A
A11: RECEITAS | B11: INICIAL | C11: ATUALIZADA | D11: No Bimestre | F11: % | G11: Até o Bimestre | I11: % | J11: REALIZAR
C12: (a) | D12: (b) | F12: (b/a) | G12: (c) | I12: (c/a) | J12: (a-c)
A13: RECEITAS (EXCETO INTRA-ORÇAMENTÁRIAS) (I) | B13: =B14+B49 -> 31500000 | C13: =C14+C49 -> 35008121.75 | D13: =D14+D49 -> 5592406.49 | F13: =D13/C13 -> 0.1597459735 | G13: =G14+G49 -> 33356175.96 | I13: =G13/C13 -> 0.9528124987 | J13: =C13-G13 -> 1651945.79
A14: RECEITAS CORRENTES | B14: =B15+B19+B22+B28+B32+B36+B37+B44 -> 31450000 | C14: =C15+C19+C22+C28+C32+C36+C37+C44 -> 32217828.47 | D14: =D15+D19+D22+D28+D32+D36+D37+D44 -> 5455124.47 | F14: 0.1693200544 | G14: =G15+G19+G22+G28+G32+G36+G37+G44 -> 31652811.02 | I14: 0.9824625843 | J14: 565017.45
A15: RECEITA TRIBUTÁRIA | B15: =B16+B17+B18 -> 2310000 | C15: =C16+C17+C18 -> 2310000 | D15: =D16+D17+D18 -> 332032.42 | F15: 0.1437369784 | G15: =G16+G17+G18 -> 1794883.14 | I15: 0.7770056883 | J15: 515116.86
A16: Impostos | B16: 2225000 | C16: 2225000 | D16: 318662.12 | F16: 0.1432189303 | G16: 1702342.57 | I16: 0.7650977843 | J16: 522657.43
A17: Taxas | B17: 85000 | C17: 85000 | D17: 13370.3 | F17: 0.1572976471 | G17: 92540.57 | I17: 1.088712588 | J17: -7540.57
A18: Contribuição de Melhoria | B18: 0 | C18: 0 | D18: 0 | G18: 0 | J18: 0
A19: RECEITA DE CONTRIBUIÇÕES | B19: =B20+B21 -> 0 | C19: =C20+C21 -> 0 | D19: =D20+D21 -> 0 | G19: =G20+G21 -> 0 | J19: 0
A20: Contribuições Sociais | B20: 0 | C20: 0 | D20: 0 | G20: 0 | J20: 0
A21: Contribuições Econômicas | B21: 0 | C21: 0 | D21: 0 | G21: 0 | J21: 0
A22: RECEITA PATRIMONIAL | B22: =B23+B24+B25+B26+B27 -> 237000 | C22: =C23+C24+C25+C26+C27 -> 237000 | D22: =D23+D24+D25+D26+D27 -> 25471.61 | F22: 0.1074751477 | G22: =G23+G24+G25+G26+G27 -> 135353.85 | I22: 0.5711132911 | J22: 101646.15
A23: Receitas Imobiliárias | B23: 0 | C23: 0 | D23: 0 | G23: 0 | J23: 0
A24: Receitas de Valores Mobiliários | B24: 227000 | C24: 227000 | D24: 25315.61 | F24: 0.111522511 | G24: 130942.85 | I24: 0.5768407489 | J24: 96057.15
A25: Receita de Concessões e Permissões | B25: 0 | C25: 0 | D25: 0 | G25: 0 | J25: 0
A26: Compensações Financeiras | B26: 0 | C26: 0 | D26: 0 | G26: 0 | J26: 0
A27: Outras Receitas Patrimoniais | B27: 10000 | C27: 10000 | D27: 156 | F27: 0.0156 | G27: 4411 | I27: 0.4411 | J27: 5589
A28: RECEITA AGROPECUÁRIA | B28: =B29+B30+B31 -> 0 | C28: =C29+C30+C31 -> 0 | D28: =D29+D30+D31 -> 0 | G28: =G29+G30+G31 -> 0 | J28: 0
A29: Receita da Produção Vegetal | B29: 0 | C29: 0 | D29: 0 | G29: 0 | J29: 0
A30: Receita da Produção Animal e Derivados | B30: 0 | C30: 0 | D30: 0 | G30: 0 | J30: 0
A31: Outras Receitas Agropecuárias | B31: 0 | C31: 0 | D31: 0 | G31: 0 | J31: 0
A32: RECEITA INDUSTRIAL | B32: =B33+B34+B35 -> 0 | C32: 0 | D32: =D33+D34+D35 -> 0 | G32: =G33+G34+G35 -> 0 | J32: 0
A33: Receita da Indústria de Transformação | B33: 0 | C33: 0 | D33: 0 | G33: 0 | J33: 0
A34: Receita da Indústria de Construção | B34: 0 | C34: 0 | D34: 0 | G34: 0 | J34: 0
A35: Outras Receitas Industriais | B35: 0 | C35: 0 | D35: 0 | G35: 0 | J35: 0
A36: RECEITA DE SERVIÇOS | B36: 378000 | C36: 378000 | D36: 32020.35 | F36: 0.08470992063 | G36: 160976.69 | I36: 0.4258642593 | J36: 217023.31
A37: TRANSFERÊNCIAS CORRENTES | B37: =B38+B39+B40+B41+B42+B43 -> 28043000 | C37: =C38+C39+C40+C41+C42+C43 -> 28810828.47 | D37: =D38+D39+D40+D41+D42+D43 -> 5031208.82 | F37: 0.1746290922 | G37: =G38+G39+G40+G41+G42+G43 -> 29196604.98 | I37: 1.013389983 | J37: -385776.51
A38: Transferências Intergovernamentais | B38: 27821000 | C38: 28588828.47 | D38: 4989884.84 | F38: 0.1745396754 | G38: 28959246.22 | I38: 1.012956731 | J38: -370417.75
A39: Transferências de Instituições Privadas | B39: 5000 | C39: 5000 | D39: 2940 | F39: 0.588 | G39: 8085 | I39: 1.617 | J39: -3085
A40: Transferências do Exterior | B40: 0 | C40: 0 | D40: 0 | G40: 0 | J40: 0
A41: Transferências de Pessoas | B41: 0 | C41: 0 | D41: 0 | G41: 0 | J41: 0
A42: Transferências de Convênios | B42: 217000 | C42: 217000 | D42: 38383.98 | F42: 0.1768847005 | G42: 229273.76 | I42: 1.056561106 | J42: -12273.76
A43: Transferências para o Combate à Fome | B43: 0 | C43: 0 | D43: 0 | G43: 0 | J43: 0
A44: OUTRAS RECEITAS CORRENTES | B44: =B45+B46+B47+B48 -> 482000 | C44: =C45+C46+C47+C48 -> 482000 | D44: =D45+D46+D47+D48 -> 34391.27 | F44: 0.07135118257 | G44: =G45+G46+G47+G48 -> 364992.36 | I44: 0.7572455602 | J44: 117007.64
A45: Multas e Juros de Mora | B45: 128000 | C45: 128000 | D45: 13629.18 | F45: 0.1064779687 | G45: 71644.16 | I45: 0.55972 | J45: 56355.84
A46: Indenizações e Restituições | B46: 35000 | C46: 35000 | D46: -19232.95 | F46: =D46/C46 -> -0.5495128571 | G46: 4367.39 | I46: =G46/C46 -> 0.1247825714 | J46: =C46-G46 -> 30632.61
A47: Receita da Dívida Ativa | B47: 319000 | C47: 319000 | D47: 39932.04 | F47: 0.1251788088 | G47: 288700.81 | I47: 0.9050182132 | J47: 30299.19
A48: Receitas Correntes Diversas | B48: 0 | C48: 0 | D48: 63 | G48: 280 | J48: -280
A49: RECEITAS DE CAPITAL | B49: =B50+B53+B56+B57+B65 -> 50000 | C49: =C50+C53+C56+C57+C65 -> 2790293.28 | D49: =D50+D53+D56+D57+D65 -> 137282.02 | F49: 0.04919985329 | G49: =G50+G53+G56+G57+G65 -> 1703364.94 | I49: 0.6104608975 | J49: 1086928.34
A50: OPERAÇÕES DE CRÉDITO | B50: =B51+B52 -> 0 | C50: =C51+C52 -> 0 | D50: =D51+D52 -> 0 | G50: =G51+G52 -> 0 | J50: 0
A51: Operações de Crédito Internas | B51: 0 | C51: 0 | D51: 0 | G51: 0 | J51: 0
A52: Operações de Crédito Externas | B52: 0 | C52: 0 | D52: 0 | G52: 0 | J52: 0
A53: ALIENAÇÃO DE BENS | B53: =B54+B55 -> 0 | C53: =C54+C55 -> 103000 | D53: =D54+D55 -> 30826.4 | F53: 0.2992854369 | G53: =G54+G55 -> 133556.4 | I53: 1.296664078 | J53: -30556.4
A54: Alienação de Bens Móveis | B54: 0 | C54: 103000 | D54: 30826.4 | F54: 0.2992854369 | G54: 133556.4 | I54: 1.296664078 | J54: -30556.4
A55: Alienação de Bens Imóveis | B55: 0 | C55: 0 | D55: 0 | G55: 0 | J55: 0
A56: AMORTIZAÇÕES DE EMPRÉSTIMOS | B56: 50000 | C56: 50000 | D56: 8955.62 | F56: 0.1791124 | G56: 56690.82 | I56: 1.1338164 | J56: -6690.82
A57: TRANSFERÊNCIAS DE CAPITAL | B57: =B58+B59+B60+B61+B62+B63+B64 -> 0 | C57: =C58+C59+C60+C61+C62+C63+C64 -> 2637293.28 | D57: =D58+D59+D60+D61+D62+D63+D64 -> 97500 | F57: 0.03696972223 | G57: =G58+G59+G60+G61+G62+G63+G64 -> 1513117.72 | I57: 0.5737388904 | J57: 1124175.56
A58: Transferências Intergovernamentais | B58: 0 | C58: 0 | D58: 0 | G58: 0 | J58: 0
A59: Transferências de Instituições Privadas | B59: 0 | C59: 0 | D59: 0 | G59: 0 | J59: 0
A60: Transferências do Exterior | B60: 0 | C60: 0 | D60: 0 | G60: 0 | J60: 0
A61: Transferências de Pessoas | B61: 0 | C61: 0 | D61: 0 | G61: 0 | J61: 0
A62: Transferências de Outras Instituições Públicas | B62: 0 | C62: 0 | D62: 0 | G62: 0 | J62: 0
A63: Transferências de Convênios | B63: 0 | C63: 2637293.28 | D63: 97500 | F63: 0.03696972223 | G63: 1513117.72 | I63: 0.5737388904 | J63: 1124175.56
A64: Transferências para o Combate à Fome | B64: 0 | C64: 0 | D64: 0 | G64: 0 | J64: 0
A65: OUTRAS RECEITAS DE CAPITAL | B65: =B66+B67+B68 -> 0 | C65: =C66+C67+C68 -> 0 | D65: =D66+D67+D68 -> 0 | G65: =G66+G67+G68 -> 0 | J65: 0
A66: Integralização do Capital Social | B66: 0 | C66: 0 | D66: 0 | G66: 0 | J66: 0
A67: Dív. Atv. Prov. da Amortiz. de Emp. e Financ. | B67: 0 | C67: 0 | D67: 0 | G67: 0 | J67: 0
A68: Receitas de Capital Diversas | B68: 0 | C68: 0 | D68: 0 | G68: 0 | J68: 0
A69: RECEITAS (INTRA-ORÇAMENTÁRIAS) (II) | B69: 0 | C69: 0 | D69: 0 | G69: 0 | J69: 0
A70: SUBTOTAL DAS RECEITAS (III) = (I + II) | B70: =B13+B69 -> 31500000 | C70: =C13+C69 -> 35008121.75 | D70: =D13+D69 -> 5592406.49 | F70: 0.1597459735 | G70: =G13+G69 -> 33356175.96 | I70: 0.9528124987 | J70: 1651945.79
A71: OPERAÇÕES DE CRÉDITO / REFINANCIAMENTO (IV) | D71: =D72+D75 -> 0 | G71: =G72+G75 -> 0 | J71: 0
A72: Operações de Crédito Internas | B72: 0 | C72: 0 | D72: =D73+D74 -> 0 | G72: =G73+G74 -> 0 | J72: 0
A73: Mobiliária | B73: 0 | C73: 0 | D73: 0 | G73: 0 | J73: 0
A74: Contratual | B74: 0 | C74: 0 | D74: 0 | G74: 0 | J74: 0
A75: Operações de Crédito Externas | B75: 0 | C75: 0 | D75: =D76+D77 -> 0 | G75: =G76+G77 -> 0 | J75: 0
A76: Mobiliária | B76: 0 | C76: 0 | D76: 0 | G76: 0 | J76: 0
A77: Contratual | B77: 0 | C77: 0 | D77: 0 | G77: 0 | J77: 0
A78: SUBTOTAL COM REFINANCIAMENTO (V) = (III + IV) | B78: =B70+B71 -> 31500000 | C78: =C70+C71 -> 35008121.75 | D78: =D70+D71 -> 5592406.49 | F78: 0.1597459735 | G78: =G70+G71 -> 33356175.96 | I78: 0.9528124987 | J78: 1651945.79
A79: DÉFICIT (VI) | B79: 0 | C79: 0 | G79: 508405.36 | J79: -508405.36
A80: TOTAL (VII) = (V + VI) | B80: =B78+B79 -> 31500000 | C80: =C78+C79 -> 35008121.75 | D80: =D78+D79 -> 5592406.49 | F80: 0.1597459735 | G80: =G78+G79 -> 33864581.32 | I80: 0.9673349962 | J80: 1143540.43
A81: SALDOS DE EXERCÍCIOS ANTERIORES (UTILIZADOS PARA CRÉDITOS ADICIONAIS) | B81: 0 | C81: 0 | D81: - | F81: – | G81: - | I81: – | J81: -
A82: Superávit Financeiro | B82: 0 | C82: 1017188.16 | D82: – | F82: – | G82: - | I82: – | J82: –
A83: Reabertura de Créditos Adicionais | B83: 0 | C83: 0 | D83: – | F83: – | G83: - | I83: – | J83: –
B85: DOTAÇÃO | C85: CRÉDITOS | D85: DOTAÇÃO | E85: DESPESAS EMPENHADAS | G85: DESPESAS LIQUIDADAS | J85: SALDO A
A86: DESPESAS | B86: INICIAL | C86: ADICIONAIS | D86: ATUALIZADA | E86: No Bimestre | F86: Até o Bimestre | G86: No Bimestre | H86: Até o Bimestre | I86: % | J86: LIQUIDAR
B87: (d) | C87: (e) | D87: (f)=(d+e) | H87: (g) | I87: (g/f) | J87: (f-g)
A88: DESPESAS (EXCETO INTRA-ORÇAMENTÁRIAS) (VIII) | B88: =B89+B93+B97+B98 -> 31500000 | C88: =D88-B88 -> 4480012.45 | D88: =D89+D93+D97+D98 -> 35980012.45 | E88: =E89+E93 -> 2183215.69 | F88: =F89+F93 -> 33950397.89 | G88: =G89+G93 -> 6704111.61 | H88: =H89+H93 -> 33864581.32 | I88: =H88/D88 -> 0.9412053808 | J88: =D88-H88 -> 2115431.13
A89: DESPESAS CORRENTES | B89: =B90+B91+B92 -> 29012000 | C89: 2946500 | D89: =D90+D91+D92 -> 31958500 | E89: =E90+E91+E92 -> 4085104.58 | F89: =F90+F91+F92 -> 31074382.28 | G89: =G90+G91+G92 -> 5679287.22 | H89: =H90+H91+H92 -> 31040302.28 | I89: 0.9712690608 | J89: 918197.72
A90: PESSOAL E ENCARGOS SOCIAIS | B90: 16748000 | C90: 1802200 | D90: 18550200 | E90: 3842115.78 | F90: 18306640.64 | G90: 3842115.78 | H90: 18306640.64 | I90: 0.9868702569 | J90: 243559.36
A91: JUROS E ENCARGOS DA DÍVIDA | B91: 0 | C91: 0 | D91: 0 | E91: 0 | F91: 0 | G91: 0 | H91: 0 | J91: 0
A92: OUTRAS DESPESAS CORRENTES | B92: 12264000 | C92: 1144300 | D92: 13408300 | E92: 242988.8 | F92: 12767741.64 | G92: 1837171.44 | H92: 12733661.64 | I92: 0.949685019 | J92: 674638.36
A93: DESPESAS DE CAPITAL | B93: =B94+B95+B96 -> 2338000 | C93: 1683512.45 | D93: =D94+D95+D96 -> 4021512.45 | E93: =E94+E95+E96 -> -1901888.89 | F93: =F94+F95+F96 -> 2876015.61 | G93: =G94+G95+G96 -> 1024824.39 | H93: =H94+H95+H96 -> 2824279.04 | I93: 0.7022927506 | J93: 1197233.41
A94: INVESTIMENTOS | B94: 2078000 | C94: 1823912.45 | D94: 3901912.45 | E94: -1912934.1 | F94: 2757716.34 | G94: 1004779.18 | H94: 2705979.77 | I94: 0.6935008934 | J94: 1195932.68
A95: INVERSÕES FINANCEIRAS | B95: 10000 | C95: -9900 | D95: 100 | E95: -9000 | F95: 0 | G95: 0 | H95: 0 | I95: 0 | J95: 100
A96: AMORTIZAÇÃO DA DÍVIDA | B96: 250000 | C96: -130500 | D96: 119500 | E96: 20045.21 | F96: 118299.27 | G96: 20045.21 | H96: 118299.27 | I96: 0.9899520502 | J96: 1200.73
A97: RESERVA DE CONTINGÊNCIA | B97: 150000 | C97: -150000 | D97: 0 | E97: 0 | F97: 0 | G97: 0 | H97: 0 | J97: 0
A98: RESERVA DO RPPS | B98: 0 | C98: 0 | D98: 0 | E98: 0 | F98: 0 | G98: 0 | H98: 0 | J98: 0
A99: DESPESAS (INTRA-ORÇAMENTÁRIAS) (IX) | B99: 0 | C99: 0 | D99: 0 | E99: 0 | F99: 0 | G99: 0 | H99: 0 | J99: 0
A100: SUBTOTAL DAS DESPESAS (X) = (VIII + IX) | B100: =B88+B99 -> 31500000 | C100: 4480012.45 | D100: =D88+D99 -> 35980012.45 | E100: =E88+E97+E98+E99 -> 2183215.69 | F100: =F88+F97+F98+F99 -> 33950397.89 | G100: =G88+G97+G98+G99 -> 6704111.61 | H100: =H88+H97+H98+H99 -> 33864581.32 | I100: 0.9412053808 | J100: 2115431.13
A101: AMORTIZAÇÃO DA DÍV. / REFINANCIAMENTO (XI) | D101: =D102+D105 -> 0 | E101: =E102+E105 -> 0 | F101: =F102+F105 -> 0 | G101: =G102+G105 -> 0 | H101: =H102+H105 -> 0
A102: Amortização da Dívida Interna | B102: 0 | C102: =D102-B102 -> 0 | D102: =D103+D104 -> 0 | E102: =E103+E104 -> 0 | F102: =F103+F104 -> 0 | G102: =G103+G104 -> 0 | H102: =H103+H104 -> 0 | I102: =H102/D102 ->  | J102: =D102-H102 -> 0
A103: Dívida Mobiliária | B103: 0 | C103: 0 | D103: 0 | E103: 0 | F103: 0 | G103: 0 | H103: 0 | J103: 0
A104: Outras Dívidas | B104: 0 | C104: 0 | D104: 0 | E104: 0 | F104: 0 | G104: 0 | H104: 0 | J104: 0
A105: Amortização da Dívida Externa | B105: 0 | C105: 0 | D105: =D106+D107 -> 0 | E105: =E106+E107 -> 0 | F105: =F106+F107 -> 0 | G105: =G106+G107 -> 0 | H105: =H106+H107 -> 0 | J105: 0
A106: Dívida Mobiliária | B106: 0 | C106: 0 | D106: 0 | E106: 0 | F106: 0 | G106: 0 | H106: 0 | J106: 0
A107: Outras Dívidas | B107: 0 | C107: 0 | D107: 0 | E107: 0 | F107: 0 | G107: 0 | H107: 0 | J107: 0
A108: SUBTOTAL C/ REFINANCIAMENTO (XII) = (X + XI) | B108: =B100+B101 -> 31500000 | C108: 4480012.45 | D108: =D100+D101 -> 35980012.45 | E108: =E100+E101 -> 2183215.69 | F108: =F100+F101 -> 33950397.89 | G108: =G100+G101 -> 6704111.61 | H108: =H100+H101 -> 33864581.32 | I108: 0.9412053808 | J108: 2115431.13
A109: SUPERÁVIT (XIII) | B109: – | C109: – | D109: – | E109: – | F109: – | G109: – | H109: =G80-H108 -> 0 | I109: – | J109: –
A110: TOTAL (XIV) = (XII + XIII) | B110: =B108 -> 31500000 | C110: 4480012.45 | D110: =D108 -> 35980012.45 | E110: =E108 -> 2183215.69 | F110: =F108 -> 33950397.89 | G110: =SUM(G108:G109) -> 6704111.61 | H110: =SUM(H108:H109) -> 33864581.32 | I110: – | J110: =SUM(J108:J109) -> 2115431.13
A111: FONTE:
A112: Departamento de Finanças
A114: LUIZ CARLOS DOS REIS NONATO | D114: CESAR ROBERTO TOQUETON | H114: MISLENE NAGATE ALVES
A115: Prefeito Municipal | D115: Contabilista - CRC 1SP164476/O-7 | H115: Responsável pelo Controle Interno

Sheet Anexo II - Função
A3: MUNICÍPIO DE SANTO ANTONIO DO ARACANGUÁ
A4: RELATÓRIO RESUMIDO DA EXECUÇÃO ORÇAMENTÁRIA
A5: DEMONSTRATIVO DA EXECUÇÃO DAS DESPESAS POR FUNÇÃO/SUBFUNÇÃO
A6: ORÇAMENTOS FISCAL E DA SEGURIDADE SOCIAL
A7: PERÍODO:- Janeiro a Dezembro de 2012 - BIMESTRE:- Novembro - Dezembro
A9: RREO - Anexo II (LRF, Art. 52, inciso II, alínea "c") | J9: 1
B10: DOTAÇÃO | C10: DOTAÇÃO | D10: DESPESAS EMPENHADAS | F10: DESPESAS LIQUIDADAS | J10: SALDO A
A11: FUNÇÃO/SUBFUNÇÃO | B11: INICIAL | C11: ATUALIZADA | D11: No Bimestre | E11: Até o Bimestre | F11: No Bimestre | G11: Até o Bimestre | H11: % | I11: % | J11: LIQUIDAR
C12: (a) | G12: (b) | H12: (b/total b) | I12: (b/a) | J12: (a-b)
A13: DESPESAS (EXCETO INTRA-ORÇAMENTÁRIAS) (I) | B13: =B15+B18+B24+B30+B33+B41+B44+B53+B56+B60+B63+B67+B70+B73+B76+B79+B82+B86+B90 -> 31500000 | C13: 35980012.45 | D13: 2183215.69 | E13: 33950397.89 | F13: 6704111.61 | G13: 33864581.32 | H13: =G13/G94 -> 1 | I13: =G13/C13 -> 0.9412053808 | J13: =C13-G13 -> 2115431.13
A15: LEGISLATIVA | B15: =B16 -> 1200000 | C15: 1100000 | D15: 172361.99 | E15: 1070000 | F15: 232521.6 | G15: 1065020 | H15: =G15/G94 -> 0.03144937745 | I15: =G15/C15 -> 0.9682 | J15: =C15-G15 -> 34980
A16: Ação Legislativa | B16: 1200000 | C16: 1100000 | D16: 172361.99 | E16: 1070000 | F16: 232521.6 | G16: 1065020 | H16: =G16/G94 -> 0.03144937745 | I16: =G16/C16 -> 0.9682 | J16: =C16-G16 -> 34980
A18: ADMINISTRAÇÃO | B18: =B19+B20+B21+B22 -> 4223000 | C18: 4143360 | D18: 532810.31 | E18: 4043063.44 | F18: 705946.12 | G18: 4040463.44 | H18: =G18/G94 -> 0.1193123695 | I18: =G18/C18 -> 0.9751659137 | J18: =C18-G18 -> 102896.56
A19: Planejamento e Orçamento | B19: 118000 | C19: 100400 | D19: 10648.09 | E19: 97145.84 | F19: 17539.09 | G19: 97145.84 | H19: =G19/G94 -> 0.002868656166 | I19: =G19/C19 -> 0.9675880478 | J19: =C19-G19 -> 3254.16
A20: Administração Geral | B20: 3298000 | C20: 3336060 | D20: 423048.79 | E20: 3265297 | F20: 564839.28 | G20: 3262697 | H20: =G20/G94 -> 0.09634541083 | I20: =G20/C20 -> 0.9780090886 | J20: =C20-G20 -> 73363
A21: Administração Financeira | B21: 694000 | C21: 582800 | D21: 78509.69 | E21: 559970.97 | F21: 102964.01 | G21: 559970.97 | H21: =G21/G94 -> 0.01653559407 | I21: =G21/C21 -> 0.9608287062 | J21: =C21-G21 -> 22829.03
A22: Comunicação Social | B22: 113000 | C22: 124100 | D22: 20603.74 | E22: 120649.63 | F22: 20603.74 | G22: 120649.63 | H22: =G22/G94 -> 0.003562708449 | I22: =G22/C22 -> 0.9721968574 | J22: =C22-G22 -> 3450.37
A24: ASSISTÊNCIA SOCIAL | B24: =B25+B26+B27+B28 -> 1599000 | C24: 1954600 | D24: 196140.35 | E24: 1866984.24 | F24: 375868.77 | G24: 1866984.24 | H24: =G24/G94 -> 0.0551308821 | I24: =G24/C24 -> 0.955174583 | J24: =C24-G24 -> 87615.76
A25: Assistência ao Idoso | B25: 35000 | C25: 29700 | D25: 6328.4 | E25: 29476 | F25: 8689.2 | G25: 29476 | H25: =G25/G94 -> 0.0008704079262 | I25: =G25/C25 -> 0.9924579125 | J25: =C25-G25 -> 224
A26: Assistência ao Portador de Deficiência | B26: 0 | C26: 0 | D26: 0 | E26: 0 | F26: 0 | G26: 0 | H26: =G26/G94 -> 0 | I26: =G26/C26 ->  | J26: =C26-G26 -> 0
A27: Assistência à Criança e ao Adolescente | B27: 140000 | C27: 126100 | D27: 17863.91 | E27: 110465.89 | F27: 36535.22 | G27: 110465.89 | H27: =G27/G94 -> 0.003261988948 | I27: =G27/C27 -> 0.8760181602 | J27: =C27-G27 -> 15634.11
A28: Assistência Comunitária | B28: 1424000 | C28: 1798800 | D28: 171948.04 | E28: 1727042.35 | F28: 330644.35 | G28: 1727042.35 | H28: =G28/G94 -> 0.05099848522 | I28: =G28/C28 -> 0.9601080443 | J28: =C28-G28 -> 71757.65
A30: PREVIDÊNCIA SOCIAL | B30: =B31 -> 150000 | C30: 129000 | D30: 30560.48 | E30: 128617.59 | F30: 30560.48 | G30: 128617.59 | H30: =G30/G94 -> 0.003797997347 | I30: =G30/C30 -> 0.9970355814 | J30: =C30-G30 -> 382.41
A31: Previdência do Regime Estatutário | B31: 150000 | C31: 129000 | D31: 30560.48 | E31: 128617.59 | F31: 30560.48 | G31: 128617.59 | H31: =G31/G94 -> 0.003797997347 | I31: =G31/C31 -> 0.9970355814 | J31: =C31-G31 -> 382.41
A33: SAÚDE | B33: =B34+B35+B36+B37+B38+B39 -> 6834000 | C33: 8219220 | D33: 1214948.08 | E33: 8003016.12 | F33: 1504190.25 | G33: 8003016.12 | H33: =G33/G94 -> 0.2363240828 | I33: =G33/C33 -> 0.9736953288 | J33: =C33-G33 -> 216203.88
A34: Atenção Básica | B34: 6539000 | C34: 7757350 | D34: 1231211.33 | E34: 7561498.63 | F34: 1389340.75 | G34: 7561498.63 | H34: =G34/G94 -> 0.2232863462 | I34: 0.9747527996 | J34: 195851.37
A35: Assistência Hospitalar e Ambulatorial | B35: 212000 | C35: 372000 | D35: 5300 | E35: 363444.5 | F35: 113444.5 | G35: 363444.5 | H35: =G35/G94 -> 0.01073228978 | I35: 0.9770013441 | J35: 8555.5
A36: Suporte Profilático e Terapêutico | B36: 48000 | C36: 55470 | D36: -21563.25 | E36: 44572.99 | F36: 1405 | G36: 44572.99 | H36: =G36/G94 -> 0.001316212641 | I36: 0.803551289 | J36: 10897.01
A37: Vigilância Sanitária | B37: 35000 | C37: 34400 | D37: 0 | E37: 33500 | F37: 0 | G37: 33500 | H37: =G37/G94 -> 0.0009892341406 | I37: 0.9738372093 | J37: 900
A38: Vigilância Epidemiológica | B38: 0 | C38: 0 | D38: 0 | E38: 0 | F38: 0 | G38: 0 | H38: =G38/G94 -> 0 | J38: 0
A39: Alimentação e Nutrição | B39: 0 | C39: 0 | D39: 0 | E39: 0 | F39: 0 | G39: 0 | H39: =G39/G94 -> 0 | J39: 0
A41: TRABALHO | B41: =B42 -> 20000 | C41: 4100 | D41: -8704 | E41: 3660 | F41: 296 | G41: 3660 | H41: =G41/G94 -> 0.000108077521 | I41: =G41/C41 -> 0.8926829268 | J41: =C41-G41 -> 440
A42: Fomento ao Trabalho | B42: 20000 | C42: 4100 | D42: -8704 | E42: 3660 | F42: 296 | G42: 3660 | H42: =G42/G94 -> 0.000108077521 | I42: =G42/C42 -> 0.8926829268 | J42: =C42-G42 -> 440
A44: EDUCAÇÃO | B44: =B45+B46+B47+B48+B49+B50+B51 -> 8802000 | C44: 11323072.45 | D44: -85695.4 | E44: 10315214.45 | F44: 2731301.3 | G44: 10263477.88 | H44: =G44/G94 -> 0.3030741111 | I44: =G44/C44 -> 0.9064216382 | J44: =C44-G44 -> 1059594.57
A45: Ensino Fundamental | B45: 5636000 | C45: 5728730 | D45: 847952.32 | E45: 5607019.96 | F45: 1136420.88 | G45: 5607019.96 | H45: =G45/G94 -> 0.1655718081 | I45: 0.9787544464 | J45: 121710.04
A46: Ensino Médio | B46: 355000 | C46: 687850 | D46: -207646.22 | E46: 447088.36 | F46: 99670.13 | G46: 447088.36 | H46: =G46/G94 -> 0.01320224088 | I46: 0.6499794432 | J46: 240761.64
A47: Ensino Profissional | B47: 46000 | C47: 31780 | D47: 3740.83 | E47: 30000.34 | F47: 3740.83 | G47: 30000.34 | H47: =G47/G94 -> 0.00088589136 | I47: 0.9440006293 | J47: 1779.66
A48: Ensino Superior | B48: 614000 | C48: 528000 | D48: -35904.63 | E48: 477893.59 | F48: 105622.64 | G48: 477893.59 | H48: =G48/G94 -> 0.01411190014 | I48: 0.9051014962 | J48: 50106.41
A49: Educação Infantil | B49: 1571000 | C49: 3064605.88 | D49: -648990.45 | E49: 2529096.4 | F49: 720290.43 | G49: 2529096.4 | H49: =G49/G94 -> 0.07468264191 | I49: 0.8252599189 | J49: 535509.48
A50: Educação Especial | B50: 50000 | C50: 50000 | D50: 0 | E50: 46800 | F50: 4680 | G50: 46800 | H50: =G50/G93 ->  | I50: =G50/C50 -> 0.936 | J50: =C50-G50 -> 3200
A51: Educação Básica | B51: 530000 | C51: 1232106.57 | D51: -44847.25 | E51: 1177315.8 | F51: 660876.39 | G51: 1125579.23 | H51: =G51/G94 -> 0.0332376538 | I51: 0.9135404821 | J51: 106527.34
A53: CULTURA | B53: =B54 -> 170000 | C53: 121100 | D53: 11908.22 | E53: 113770.41 | F53: 26159.52 | G53: 113770.41 | H53: =G53/G94 -> 0.003359569366 | I53: =G53/C53 -> 0.9394748968 | J53: =C53-G53 -> 7329.59
A54: Difusão Cultural | B54: 170000 | C54: 121100 | D54: 11908.22 | E54: 113770.41 | F54: 26159.52 | G54: 113770.41 | H54: =G54/G94 -> 0.003359569366 | I54: =G54/C54 -> 0.9394748968 | J54: =C54-G54 -> 7329.59
A56: URBANISMO | B56: =B57+B58 -> 3234000 | C56: 3755560 | D56: -323469.3 | E56: 3288131.2 | F56: 509953.23 | G56: 3288131.2 | H56: =G56/G94 -> 0.09709646692 | I56: =G56/C56 -> 0.8755368574 | J56: =C56-G56 -> 467428.8
A57: Infra-Estrutura Urbana | B57: 420000 | C57: 348860 | D57: -620992.84 | E57: 14902.34 | F57: 0 | G57: 14902.34 | H57: =G57/G94 -> 0.000440056821 | I57: =G57/C57 -> 0.04271725047 | J57: =C57-G57 -> 333957.66
A58: Serviços Urbanos | B58: 2814000 | C58: 3406700 | D58: 297523.54 | E58: 3273228.86 | F58: 509953.23 | G58: 3273228.86 | H58: =G58/G94 -> 0.0966564101 | I58: =G58/C58 -> 0.9608209881 | J58: =C58-G58 -> 133471.14
A60: HABITAÇÃO | B60: =B61 -> 0 | C60: 0 | D60: 0 | E60: 0 | F60: 0 | G60: 0 | H60: =G60/G94 -> 0 | I60: =G60/C60 ->  | J60: =C60-G60 -> 0
A61: Habitação Urbana | B61: 0 | C61: 0 | D61: 0 | E61: 0 | F61: 0 | G61: 0 | H61: =G61/G94 -> 0 | I61: =G61/C61 ->  | J61: =C61-G61 -> 0
A63: SANEAMENTO | B63: =B64+B65 -> 445000 | C63: 502400 | D63: 64898.26 | E63: 484569.99 | F63: 84372.97 | G63: 484569.99 | H63: =G63/G101 ->  | I63: =G63/C63 -> 0.9645103304 | J63: =C63-G63 -> 17830.01
A64: Serviços Urbanos | B64: 0 | C64: 200 | D64: 0 | E64: 0 | F64: 0 | G64: 0 | H64: =G64/G101 ->  | I64: =G64/C64 -> 0 | J64: =C64-G64 -> 200
A65: Saneamento Básico Urbano | B65: 445000 | C65: 502200 | D65: 64898.26 | E65: 484569.99 | F65: 84372.97 | G65: 484569.99 | H65: =G65/G102 ->  | I65: =G65/C65 -> 0.9648944444 | J65: =C65-G65 -> 17630.01
A67: GESTÃO AMBIENTAL | B67: =B68 -> 50000 | C67: 200 | D67: 0 | E67: 0 | F67: 0 | G67: 0 | H67: =G67/G101 ->  | I67: =G67/C67 -> 0 | J67: =C67-G67 -> 200
A68: Recuperação de Áreas Degradadas | B68: 50000 | C68: 200 | D68: 0 | E68: 0 | F68: 0 | G68: 0 | H68: =G68/G101 ->  | I68: =G68/C68 -> 0 | J68: =C68-G68 -> 200
A70: AGRICULTURA | B70: =B71 -> 730000 | C70: 791200 | D70: 108185.29 | E70: 778800.35 | F70: 117848.85 | G70: 778800.35 | H70: =G70/G94 -> 0.0229974894 | I70: =G70/C70 -> 0.984328046 | J70: =C70-G70 -> 12399.65
A71: Extensão Rural | B71: 730000 | C71: 791200 | D71: 108185.29 | E71: 778800.35 | F71: 117848.85 | G71: 778800.35 | H71: =G71/G94 -> 0.0229974894 | I71: =G71/C71 -> 0.984328046 | J71: =C71-G71 -> 12399.65
A73: INDÚSTRIA | B73: =B74 -> 0 | C73: 0 | D73: 0 | E73: 0 | F73: 0 | G73: 0 | H73: =G73/G97 ->  | I73: =G73/C73 ->  | J73: =C73-G73 -> 0
A74: Promoção Industrial | B74: 0 | C74: 0 | D74: 0 | E74: 0 | F74: 0 | G74: 0 | H74: =G74/G97 ->  | I74: =G74/C74 ->  | J74: =C74-G74 -> 0
A76: COMÉRCIO E SERVIÇOS | B76: =B77 -> 112000 | C76: 300 | D76: 0 | E76: 0 | F76: 0 | G76: 0 | H76: =G76/G94 -> 0 | I76: =G76/C76 -> 0 | J76: =C76-G76 -> 300
A77: Turismo | B77: 112000 | C77: 300 | D77: 0 | E77: 0 | F77: 0 | G77: 0 | H77: =G77/G94 -> 0 | I77: =G77/C77 -> 0 | J77: =C77-G77 -> 300
A79: TRANSPORTE | B79: =B80 -> 2085000 | C79: 2181900 | D79: 120460.59 | E79: 2151999.36 | F79: 213931.72 | G79: 2151999.36 | H79: =G79/G94 -> 0.06354720112 | I79: =G79/C79 -> 0.9862960539 | J79: =C79-G79 -> 29900.64
A80: Transporte Rodoviário | B80: 2085000 | C80: 2181900 | D80: 120460.59 | E80: 2151999.36 | F80: 213931.72 | G80: 2151999.36 | H80: =G80/G94 -> 0.06354720112 | I80: =G80/C80 -> 0.9862960539 | J80: =C80-G80 -> 29900.64
A82: DESPORTO E LAZER | B82: =B83+B84 -> 1131000 | C82: 1279500 | D82: 117153.33 | E82: 1269351.87 | F82: 94625.13 | G82: 1242851.87 | H82: =G82/G94 -> 0.03670064184 | I82: =G82/C82 -> 0.9713574599 | J82: =C82-G82 -> 36648.13
A83: Desporto Comunitário | B83: 1131000 | C83: 1279500 | D83: 117153.33 | E83: 1269351.87 | F83: 94625.13 | G83: 1242851.87 | H83: =G83/G94 -> 0.03670064184 | I83: =G83/C83 -> 0.9713574599 | J83: =C83-G83 -> 36648.13
A84: Lazer | B84: 0 | C84: 0 | D84: 0 | E84: 0 | F84: 0 | G84: 0 | H84: =G84/G94 -> 0 | I84: =G84/C84 ->  | J84: =C84-G84 -> 0
A86: ENCARGOS ESPECIAIS | B86: =B87+B88 -> 565000 | C86: 474500 | D86: 31657.49 | E86: 433218.87 | F86: 76535.67 | G86: 433218.87 | H86: =G86/G94 -> 0.01279268348 | I86: =G86/C86 -> 0.9130007798 | J86: =C86-G86 -> 41281.13
A87: Serviço da Dívida Interna | B87: 250000 | C87: 119500 | D87: 20045.21 | E87: 118299.27 | F87: 20045.21 | G87: 118299.27 | H87: =G87/G94 -> 0.003493303782 | I87: =G87/C87 -> 0.9899520502 | J87: =C87-G87 -> 1200.73
A88: Outros Encargos Especiais | B88: 315000 | C88: 355000 | D88: 11612.28 | E88: 314919.6 | F88: 56490.46 | G88: 314919.6 | H88: =G88/G94 -> 0.009299379698 | I88: =G88/C88 -> 0.8870974648 | J88: =C88-G88 -> 40080.4
A90: RESERVA DE CONTINGÊNCIA | B90: =B91 -> 150000 | C90: 0 | D90: 0 | E90: 0 | F90: 0 | G90: 0 | H90: =G90/G94 -> 0 | I90: =G90/C90 ->  | J90: =C90-G90 -> 0
A91: Reserva de Contingência | B91: 150000 | C91: 0 | D91: 0 | E91: 0 | F91: 0 | G91: 0 | H91: =G91/G94 -> 0 | I91: =G91/C91 ->  | J91: =C91-G91 -> 0
A93: DESPESAS (INTRA-ORÇAMENTÁRIAS) (II) | B93: 0 | C93: 0 | D93: 0 | E93: 0 | F93: 0 | G93: 0 | H93: - | I93: =G93/C93 ->  | J93: =C93-G93 -> 0
A94: TOTAL (III) = (I + II) | B94: =B13+B93 -> 31500000 | C94: 35980012.45 | D94: 2183215.69 | E94: 33950397.89 | F94: 6704111.61 | G94: 33864581.32 | H94: - | I94: =G94/C94 -> 0.9412053808 | J94: =C94-G94 -> 2115431.13
A95: FONTE:
A96: Departamento de Finanças
A99: LUIZ CARLOS DOS REIS NONATO | C99: CESAR ROBERTO TOQUETON | F99: MISLENE NAGATE ALVES
A100: Prefeito Municipal | C100: Contabilista - CRC 1SP164476/O-7 | F100: Responsável pelo Controle Interno

Sheet Anexo III - RCL
A3: MUNICÍPIO DE SANTO ANTONIO DO ARACANGUÁ
A4: RELATÓRIO RESUMIDO DA EXECUÇÃO ORÇAMENTÁRIA
A5: DEMONSTRATIVO DA RECEITA CORRENTE LÍQUIDA
A6: ORÇAMENTOS FISCAL E DA SEGURIDADE SOCIAL
A7: PERÍODO:- Janeiro a Dezembro de 2012 - BIMESTRE:- Novembro - Dezembro
A9: RREO - Anexo III (LRF, Art. 53, inciso I) | O9: 1
B10: EVOLUÇÃO DA RECEITA REALIZADA NOS ÚLTIMOS 12 MESES | N10: TOTAL | O10: PREVISÃO
A11: ESPECIFICAÇÃO | N11: (ÚLTIMOS | O11: ATUALIZADA
B12: 2012-01-01 | C12: 2012-02-01 | D12: 2012-03-01 | E12: 2012-04-01 | F12: 2012-05-01 | G12: 2012-06-01 | H12: 2012-07-01 | I12: 2012-08-01 | J12: 2012-09-01 | K12: 2012-10-01 | L12: 2012-11-01 | M12: 2012-12-01 | N12: 12 MESES) | O12: <EXERCÍCIO>
A13: RECEITAS CORRENTES (I)
A14: Receita Tributária | B14: =B15+B16+B17+B18+B19 -> 96152.38 | C14: 65485.52 | D14: 99533.1 | E14: 66515.32 | F14: 75167.55 | G14: 127234.22 | H14: 435401.22 | I14: 172758.01 | J14: 166345.17 | K14: 158258.23 | L14: =L15+L16+L17+L18+L19 -> 103465.95 | M14: 228566.47 | N14: =SUM(B14:M14) -> 1794883.14 | O14: =O15+O16+O17+O18+O19 -> 2310000
A15: IPTU | B15: 0 | C15: 23.61 | D15: 0 | E15: 0 | F15: 0 | G15: 32149.78 | H15: 215516.63 | I15: 37927.14 | J15: 34761.71 | K15: 35792.16 | L15: 32380.88 | M15: 46019.61 | N15: 434571.52 | O15: 815000
A16: ISS | B16: 22378.62 | C16: 20885.6 | D16: 40058.42 | E16: 31384.73 | F16: 39793.07 | G16: 47235.7 | H16: 23867.59 | I16: 67332.47 | J16: 82032.65 | K16: 69550.64 | L16: 34667.25 | M16: 116357.72 | N16: 595544.46 | O16: 800000
A17: ITBI | B17: 46493.08 | C17: 18043.25 | D17: 27827.2 | E17: 688 | F17: 1117.06 | G17: 216.39 | H17: 133852.7 | I17: 31727.13 | J17: 18184.59 | K17: 12163.5 | L17: 7507.02 | M17: 8072.09 | N17: 305892.01 | O17: 300000
A18: IRRF | B18: 25319.12 | C18: 24170.72 | D18: 28287 | E18: 32572.65 | F18: 31155.4 | G18: 32797.27 | H18: 27169.17 | I18: 29447.72 | J18: 26295.47 | K18: 35462.51 | L18: 23991.35 | M18: 49666.2 | N18: 366334.58 | O18: 310000
A19: Outras Receitas Tributárias | B19: 1961.56 | C19: 2362.34 | D19: 3360.48 | E19: 1869.94 | F19: 3102.02 | G19: 14835.08 | H19: 34995.13 | I19: 6323.55 | J19: 5070.75 | K19: 5289.42 | L19: 4919.45 | M19: 8450.85 | N19: 92540.57 | O19: 85000
A20: Receita de Contribuições | B20: 0 | C20: 0 | D20: 0 | E20: 0 | F20: 0 | G20: 0 | H20: 0 | I20: 0 | J20: 0 | K20: 0 | L20: 0 | M20: 0 | N20: 0 | O20: 0
A21: Receita Patrimonial | B21: 15311.93 | C21: 15731.14 | D21: 161234.58 | E21: -132781.46 | F21: 8498.04 | G21: 7088.91 | H21: 7633.03 | I21: 9032.99 | J21: 7841.73 | K21: 10291.35 | L21: 9507.09 | M21: 15964.52 | N21: 135353.85 | O21: 237000
A22: Receita Agropecuária | B22: 0 | C22: 0 | D22: 0 | E22: 0 | F22: 0 | G22: 0 | H22: 0 | I22: 0 | J22: 0 | K22: 0 | L22: 0 | M22: 0 | N22: 0 | O22: 0
A23: Receita Industrial | B23: 0 | C23: 0 | D23: 0 | E23: 0 | F23: 0 | G23: 0 | H23: 0 | I23: 0 | J23: 0 | K23: 0 | L23: 0 | M23: 0 | N23: 0 | O23: 0
A24: Receita de Serviços | B24: 8293.36 | C24: 10729.13 | D24: 16470.81 | E24: 11666.57 | F24: 15638.48 | G24: 14443.61 | H24: 13545.84 | I24: 15783.2 | J24: 9731.96 | K24: 12653.38 | L24: 9721.34 | M24: 22299.01 | N24: 160976.69 | O24: 378000
A25: Transferências Correntes | B25: =B26+B27+B28+B29+B30+B31+B32+B33 -> 3184066.58 | C25: 2359394.81 | D25: 3008017.7 | E25: 2654877.27 | F25: 2787963.78 | G25: 2671059.04 | H25: 2879865.59 | I25: 2683273.45 | J25: 2489433.73 | K25: 3656920.13 | L25: =L26+L27+L28+L29+L30+L31+L32+L33 -> 2588199.4 | M25: 3304369.03 | N25: 34267440.51 | O25: =O26+O27+O28+O29+O30+O31+O32+O33 -> 32911000
A26: COTA-PARTE DO F.P.M. | B26: 481715.34 | C26: 582707.89 | D26: 395751.72 | E26: 498776.96 | F26: 557846.74 | G26: 476037.92 | H26: 355489.2 | I26: 392274.87 | J26: 343234.75 | K26: 364359.18 | L26: 492491.28 | M26: 800601.94 | N26: 5741287.79 | O26: 6200000
A27: COTA-PARTE DO I.C.M.S. | B27: 1609420.98 | C27: 1193674.99 | D27: 1482539.5 | E27: 1361032.13 | F27: 1646977.65 | G27: 1443353.19 | H27: 1751551.37 | I27: 1347247.66 | J27: 1530387.99 | K27: 1862691.69 | L27: 1336204.83 | M27: 1787284.76 | N27: 18352366.74 | O27: 17000000
A28: COTA-PARTE DO I.P.V.A. | B28: 146002.51 | C28: 88785.11 | D28: 91753.99 | E28: 109176.98 | F28: 13176.58 | G28: 18682.19 | H28: 16840.94 | I28: 25086.73 | J28: 26634.65 | K28: 29569.28 | L28: 16032.64 | M28: 11303.59 | N28: 593045.19 | O28: 500000
A29: COTA-PARTE DO I.T.R. | B29: 42645.42 | C29: 3198.74 | D29: 0 | E29: 279.02 | F29: 871.37 | G29: 0 | H29: 2386.19 | I29: 805.82 | J29: 8443.02 | K29: 460016.88 | L29: 77725.69 | M29: 63865.75 | N29: 660237.9 | O29: 400000
A30: TRANSFERÊNCIAS DA LC 87/1996 | B30: 8675.36 | C30: 8675.36 | D30: 8675.36 | E30: 8675.36 | F30: 8675.36 | G30: 0 | H30: 8675.36 | I30: 8675.36 | J30: 0 | K30: 17350.72 | L30: 8675.36 | M30: 17350.72 | N30: 104104.32 | O30: 120000
A31: TRANSFERÊNCIAS DA LC 61/1989 | B31: 5142.6 | C31: 14437.85 | D31: 10797.03 | E31: 11760.68 | F31: 13355.45 | G31: 11645.05 | H31: 11828.27 | I31: 12862.67 | J31: 12392.87 | K31: 13029.37 | L31: 12581.57 | M31: 17239.47 | N31: 147072.88 | O31: 120000
A32: TRANSFERÊNCIAS DO FUNDEB | B32: 526230.17 | C32: 331339.38 | D32: 386885.39 | E32: 325142.05 | F32: 382705.51 | G32: 336430.25 | H32: 390660.35 | I32: 309025.4 | J32: 345224.02 | K32: 415872.11 | L32: 309800.83 | M32: 366741.13 | N32: 4426056.59 | O32: 4000000
A33: OUTRAS TRANSFÊRENCIAS CORRENTES | B33: 364234.2 | C33: 136575.49 | D33: 631614.71 | E33: 340034.09 | F33: 164355.12 | G33: 384910.44 | H33: 342433.91 | I33: 587294.94 | J33: 223116.43 | K33: 494030.9 | L33: 334687.2 | M33: 239981.67 | N33: 4243269.1 | O33: 4571000
A34: Outras Receitas Correntes | B34: 29419.82 | C34: 24102.4 | D34: 34336.97 | E34: 19811.97 | F34: 34407.24 | G34: 46017.82 | H34: 58111.5 | I34: 25592.11 | J34: 14237.14 | K34: 44564.12 | L34: 18571.73 | M34: 15819.54 | N34: 364992.36 | O34: 482000
A35: TOTAL DAS RECEITAS | B35: =B14+B20+B21+B22+B23+B24+B25+B34 -> 3333244.07 | C35: 2475443 | D35: 3319593.16 | E35: 2620089.67 | F35: 2921675.09 | G35: 2865843.6 | H35: 3394557.18 | I35: 2906439.76 | J35: 2687589.73 | K35: 3882687.21 | L35: =L14+L20+L21+L22+L23+L24+L25+L34 -> 2729465.51 | M35: 3587018.57 | N35: =N14+N20+N21+N22+N23+N24+N25+N34 -> 36723646.55 | O35: 36318000
A36: DEDUÇÕES (II)
A37: Transferências Constitucionais e Legais | B37: 0 | C37: 0 | D37: 0 | E37: 0 | F37: 0 | G37: 0 | H37: 0 | I37: 0 | J37: 0 | K37: 0 | L37: 0 | M37: 0 | N37: =SUM(B37:M37) -> 0 | O37: 0
A38: Contrib. Empregadores e Trab. para Seg. Social | B38: 0 | C38: 0 | D38: 0 | E38: 0 | F38: 0 | G38: 0 | H38: 0 | I38: 0 | J38: 0 | K38: 0 | L38: 0 | M38: 0 | N38: 0 | O38: 0
A39: Contrib. para o Plano de Previdência do Servidor | B39: 0 | C39: 0 | D39: 0 | E39: 0 | F39: 0 | G39: 0 | H39: 0 | I39: 0 | J39: 0 | K39: 0 | L39: 0 | M39: 0 | N39: 0 | O39: 0
A40: Compensação Financ. entre Regimes Previdência | B40: 0 | C40: 0 | D40: 0 | E40: 0 | F40: 0 | G40: 0 | H40: 0 | I40: 0 | J40: 0 | K40: 0 | L40: 0 | M40: 0 | N40: 0 | O40: 0
A41: Dedução de Receita para Formação do FUNDEB | B41: 463110.99 | C41: 331339.38 | D41: 450004.57 | E41: 325142.05 | F41: 382705.51 | G41: 336430.25 | H41: 390660.35 | I41: 309025.4 | J41: 345224.02 | K41: 415872.11 | L41: 309800.83 | M41: 366741.13 | N41: 4426056.59 | O41: 4000000
A42: Contribuições para PIS/PASEP | B42: 0 | C42: 0 | D42: 0 | E42: 0 | F42: 0 | G42: 0 | H42: 0 | I42: 0 | J42: 0 | K42: 0 | L42: 0 | M42: 0 | N42: 0 | O42: 0
A43: Outras | B43: 0 | C43: 0 | D43: 0 | E43: 0 | F43: 0 | G43: 0 | H43: 0 | I43: 0 | J43: 0 | K43: 0 | L43: 0 | M43: 0 | N43: 0 | O43: 0
A44: TOTAL DAS DEDUÇÕES | B44: =SUM(B37:B43) -> 463110.99 | C44: 331339.38 | D44: 450004.57 | E44: 325142.05 | F44: 382705.51 | G44: 336430.25 | H44: 390660.35 | I44: 309025.4 | J44: =SUM(J37:J43) -> 345224.02 | K44: 415872.11 | L44: =SUM(L37:L43) -> 309800.83 | M44: 366741.13 | N44: 4426056.59 | O44: 4000000
A45: RECEITA CORRENTE LÍQUIDA (III) = (I - II) | B45: =B35-B44 -> 2870133.08 | C45: 2144103.62 | D45: 2869588.59 | E45: 2294947.62 | F45: 2538969.58 | G45: 2529413.35 | H45: 3003896.83 | I45: 2597414.36 | J45: 2342365.71 | K45: 3466815.1 | L45: 2419664.68 | M45: 3220277.44 | N45: =N14+N20+N21+N22+N23+N24+N25+N34-N37-N38-N39-N40-N41-N42-N43 -> 32297589.96 | O45: =O14+O20+O21+O22+O23+O24+O25+O34-O37-O38-O39-O40-O41-O42-O43 -> 32318000
A46: FONTE:
A47: Departamento de Finanças
A49: LUIZ CARLOS DOS REIS NONATO | E49: CESAR ROBERTO TOQUETON | J49: MISLENE NAGATE ALVES
A50: Prefeito Municipal | E50: Contabilista - CRC 1SP164476/O-7 | J50: Responsável pelo Controle Interno

Sheet Anexo V - RPPS
A3: MUNICÍPIO DE SANTO ANTONIO DO ARACANGUÁ
A4: RELATÓRIO RESUMIDO DA EXECUÇÃO ORÇAMENTÁRIA
A5: DEMONSTRATIVO DAS RECEITAS E DESPESAS PREVIDENCIÁRIAS DO REGIME PRÓPRIO DE PREVIDÊNCIA DOS SERVIDORES
A6: ORÇAMENTO DA SEGURIDADE SOCIAL
A7: PERÍODO:- Janeiro a Dezembro de 2012 - BIMESTRE:- Novembro - Dezembro
A9: RREO - Anexo V (LRF, Art. 53, inciso II) | H9: 1
B10: PREVISÃO | C10: PREVISÃO | D10: RECEITAS REALIZADAS
A11: RECEITAS | B11: INICIAL | C11: ATUALIZADA | D11: No Bimestre | F11: Até o Bimestre/ | H11: Até o Bimestre/
F12: 2012 | H12: 2011
A13: RECEITAS PREVIDENCIÁRIAS - RPPS (EXCETO INTRA-ORÇAMENTÁRIAS) (I)
A14: RECEITAS CORRENTES | B14: 0 | C14: 0 | D14: 0 | F14: 0 | H14: 0
A15: Receita de Contribuições dos Segurados | B15: 0 | C15: 0 | D15: 0 | F15: 0 | H15: 0
A16: Pessoal Civil | B16: 0 | C16: 0 | D16: 0 | F16: 0 | H16: 0
A17: Ativo | B17: 0 | C17: 0 | D17: 0 | F17: 0 | H17: 0
A18: Inativo | B18: 0 | C18: 0 | D18: 0 | F18: 0 | H18: 0
A19: Pensionista | B19: 0 | C19: 0 | D19: 0 | F19: 0 | H19: 0
A20: Pessoal Militar | B20: 0 | C20: 0 | D20: 0 | F20: 0 | H20: 0
A21: Ativo | B21: 0 | C21: 0 | D21: 0 | F21: 0 | H21: 0
A22: Inativo | B22: 0 | C22: 0 | D22: 0 | F22: 0 | H22: 0
A23: Militar | B23: 0 | C23: 0 | D23: 0 | F23: 0 | H23: 0
A24: Outras Receitas de Contribuições | B24: 0 | C24: 0 | D24: 0 | F24: 0 | H24: 0
A25: Receita Patrimonial | B25: N A D A A D E C L A R A R
A26: Receitas Imobiliárias
A27: Receitas de Valores Mobiliários
A28: Outras Receitas Patrimoniais
A29: Receita de Serviços
A30: Outras Receitas Correntes | B30: 0 | C30: 0 | D30: 0 | F30: 0 | H30: 0
A31: Compensação Previdenciária do RGPS para o RPPS | B31: 0 | C31: 0 | D31: 0 | F31: 0 | H31: 0
A32: Demais Receitas Correntes | B32: 0 | C32: 0 | D32: 0 | F32: 0 | H32: 0
A33: RECEITAS DE CAPITAL | B33: 0 | C33: 0 | D33: 0 | F33: 0 | H33: 0
A34: Alienação de Bens, Direitos e Ativos | B34: 0 | C34: 0 | D34: 0 | F34: 0 | H34: 0
A35: Amortização de Empréstimos | B35: 0 | C35: 0 | D35: 0 | F35: 0 | H35: 0
A36: Outras Receitas de Capital | B36: 0 | C36: 0 | D36: 0 | F36: 0 | H36: 0
A37: (–) DEDUÇÕES DA RECEITA | B37: 0 | C37: 0 | D37: 0 | F37: 0 | H37: 0
A38: RECEITAS PREVIDENCIÁRIAS - RPPS (INTRA-ORÇAMENTÁRIAS) (II) | B38: 0 | C38: 0 | D38: 0 | F38: 0 | H38: 0
A39: TOTAL DAS RECEITAS PREVIDENCIÁRIAS RPPS - (III) = (I + II) | B39: 0 | C39: 0 | D39: 0 | F39: 0 | H39: 0
B41: DOTAÇÃO | C41: DOTAÇÃO | D41: DESPESAS LIQUIDADAS
A42: DESPESAS | B42: INICIAL | C42: ATUALIZADA | D42: No Bimestre | F42: Até o Bimestre/ | H42: Até o Bimestre/
F43: 2012 | H43: 2011
A44: DESPESAS PREVIDENCIÁRIAS - RPPS (EXCETO INTRA-ORÇAMENTÁRIAS) (IV) | B44: =B45+B48+B60 -> 0 | C44: =C45+C48+C60 -> 0 | D44: =D45+D48+D60 -> 0 | F44: =F45+F48+F60 -> 0 | H44: =H45+H48+H60 -> 0
A45: ADMINISTRAÇÃO | B45: 0 | C45: 0 | D45: =D46+D47 -> 0 | F45: =F46+F47 -> 0 | H45: =H46+H47 -> 0
A46: Despesas Correntes | B46: 0 | C46: 0 | D46: 0 | F46: 0 | H46: 0
A47: Despesas de Capital | B47: 0 | C47: 0 | D47: 0 | F47: 0 | H47: 0
A48: PREVIDÊNCIA | B48: =B49+B53+B57 -> 0 | C48: =C49+C53+C57 -> 0 | D48: =D49+D53+D57 -> 0 | F48: =F49+F53+F57 -> 0 | H48: =H49+H53+H57 -> 0
A49: Pessoal Civil | B49: =B50+B51+B52 -> 0 | C49: =C50+C51+C52 -> 0 | D49: =D50+D51+D52 -> 0 | F49: =F50+F51+F52 -> 0 | H49: =H50+H51+H52 -> 0
A50: Aposentadorias | B50: 0 | C50: 0 | D50: 0 | F50: 0 | H50: 0
A51: Pensões | B51: 0 | C51: 0 | D51: 0 | F51: 0 | H51: 0
A52: Outros Benefícios Previdenciários | B52: 0 | C52: 0 | D52: 0 | F52: 0 | H52: 0
A53: Pessoal Militar | B53: 0 | C53: 0 | D53: 0 | F53: 0 | H53: 0
A54: Reformas | B54: 0 | C54: 0 | D54: 0 | F54: 0 | H54: 0
A55: Pensões | B55: 0 | C55: 0 | D55: 0 | F55: 0 | H55: 0
A56: Outros Benefícios Previdenciários | B56: 0 | C56: 0 | D56: 0 | F56: 0 | H56: 0
A57: Outras Despesas Previdenciárias | B57: 0 | C57: 0 | D57: 0 | F57: 0 | H57: 0
A58: Compensação Previdenciária do RPPS para o RGPS | B58: 0 | C58: 0 | D58: 0 | F58: 0 | H58: 0
A59: Demais Despesas Previdenciárias | B59: 0 | C59: 0 | D59: 0 | F59: 0 | H59: 0
A60: DESPESAS PREVIDENCIÁRIAS - RPPS (INTRA-ORÇAMENTÁRIAS) (V) | B60: 0 | C60: 0 | D60: 0 | F60: 0 | H60: 0
A61: TOTAL DAS DESPESAS PREVIDENCIÁRIAS RPPS (VI) = (IV + V) | B61: =B44+B60 -> 0 | C61: =C44+C60 -> 0 | D61: =D44+D60 -> 0 | F61: =F44+F60 -> 0 | H61: =H44+H60 -> 0
A63: RESULTADO PREVIDENCIÁRIO (VII) = (III – VI) | B63: =B39-B61 -> 0 | C63: =C39-C61 -> 0 | D63: =D39-D61 -> 0 | F63: =F39-F61 -> 0
A65: APORTES DE RECURSOS PARA O REGIME PRÓPRIO DE PREVIDÊNCIA DO SERVIDOR | B65: PREVISÃO | C65: PREVISÃO | D65: RECEITAS REALIZADAS
B66: INICIAL | C66: ATUALIZADA | D66: No | F66: Até o Bimestre/ | H66: Até o Bimestre/
D67: Bimestre | F67: <Exercício> | H67: <Exercício Anterior>
A68: TOTAL DOS APORTES PARA O RPPS
A69: Plano Financeiro
A70: Recursos para Cobertura de Insuficiências Financeiras
A71: Recursos para Formação de Reserva
A72: Outros Aportes para o RPPS
A73: Plano Previdenciário
A74: Recursos para Cobertura de Déficit Financeiro
A75: Recursos para Cobertura de Déficit Atuarial
A76: Outros Aportes para o RPPS
A78: RESERVA ORÇAMENTÁRIA DO RPPS | D78: PREVISÃO ORÇAMENTÁRIA
A79: VALOR
A81: BENS E DIREITOS DO RPPS | B81: <MÊS ANTERIOR> | D81: PERÍODO DE REFERÊNCIA
D82: 2012 | G82: 2011
A83: CAIXA | B83: 0 | D83: 0
A84: BANCOS CONTA MOVIMENTO | B84: 0 | D84: 0
A85: INVESTIMENTOS | B85: 0 | D85: 0
A86: OUTROS BENS E DIREITOS | B86: 0 | D86: 0
B88: PREVISÃO | C88: PREVISÃO | D88: RECEITAS REALIZADAS
A89: RECEITAS INTRA-ORÇAMENTÁRIAS - RPPS | B89: INICIAL | C89: ATUALIZADA | D89: No Bimestre | F89: Até o Bimestre/ | H89: Até o Bimestre/
F90: 2012 | H90: 2011
A91: RECEITAS CORRENTES (VIII) | B91: =B92 -> 0 | C91: =C92 -> 0 | D91: 0 | F91: 0 | H91: 0
A92: Receita de Contribuições | B92: =B93+B102+B105+B106 -> 0 | C92: =C93+C102+C105+C106 -> 0 | D92: 0 | F92: 0 | H92: 0
A93: Patronal | B93: =B94+B98 -> 0 | C93: =C94+C98 -> 0 | D93: =D94+D98 -> 0 | F93: =F94+F98 -> 0 | H93: =H94+H98 -> 0
A94: Pessoal Civil | B94: =B95+B96+B97 -> 0 | C94: =C95+C96+C97 -> 0 | D94: =D95+D96+D97 -> 0 | F94: =F95+F96+F97 -> 0 | H94: =H95+H96+H97 -> 0
A95: Ativo | B95: 0 | C95: 0 | D95: 0 | F95: 0 | H95: 0
A96: Inativo | B96: 0 | C96: 0 | D96: 0 | F96: 0 | H96: 0
A97: Pensionista | B97: 0 | C97: 0 | D97: 0 | F97: 0 | H97: 0
A98: Pessoal Militar | B98: 0 | C98: 0 | D98: 0 | F98: 0 | H98: 0
A99: Ativo | B99: 0 | C99: 0 | D99: 0 | F99: 0 | H99: 0
A100: Inativo | B100: 0 | C100: 0 | D100: 0 | F100: 0 | H100: 0
A101: Militar | B101: 0 | C101: 0 | D101: 0 | F101: 0 | H101: 0
A102: Para Cobertura de Déficit Atuarial | B102: 0 | C102: 0 | D102: 0 | F102: 0 | H102: 0
A103: Em Regime de Débitos e Parcelamentos | B103: 0 | C103: 0 | D103: 0 | F103: 0 | H103: 0
A104: Receita Patrimonial | B104: 0 | C104: 0 | D104: 0 | F104: 0 | H104: 0
A105: Receita de Serviços | B105: 0 | C105: 0 | D105: 0 | F105: 0 | H105: 0
A106: Outras Receitas Correntes | B106: 0 | C106: 0 | D106: 0 | F106: 0 | H106: 0
A107: RECEITAS DE CAPITAL (IX) | B107: 0 | C107: 0 | D107: 0 | F107: 0 | H107: 0
A108: Alienação de Bens | B108: 0 | C108: 0 | D108: 0 | F108: 0 | H108: 0
A109: Amortização de Empréstimos | B109: 0 | C109: 0 | D109: 0 | F109: 0 | H109: 0
A110: Outras Receitas de Capital | B110: 0 | C110: 0 | D110: 0 | F110: 0 | H110: 0
A111: DEDUÇÕES DA RECEITA (X) | B111: 0 | C111: 0 | D111: 0 | F111: 0 | H111: 0
A112: TOTAL DAS RECEITAS PREVIDENCIÁRIAS INTRA-ORÇAMENTÁRIAS (XI) = (VIII + IX - X)
B114: DOTAÇÃO | C114: DOTAÇÃO | D114: DESPESAS LIQUIDADAS
A115: DESPESAS INTRA-ORÇAMENTÁRIAS - RPPS | B115: INICIAL | C115: ATUALIZADA | D115: No Bimestre | F115: Até o Bimestre/ | H115: Até o Bimestre/
F116: 2012 | H116: 2011
A117: ADMINISTRAÇÃO (XII) | B117: =B118+B119 -> 0 | C117: =C118+C119 -> 0 | D117: 0 | F117: 0 | H117: 0
A118: Despesas Correntes | B118: 0 | C118: 0 | D118: 0 | F118: 0 | H118: 0
A119: Despesas de Capital | B119: 0 | C119: 0 | D119: 0 | F119: 0 | H119: 0
A120: TOTAL DAS DESPESAS PREVIDENCIÁRIAS INTRA-ORÇAMENTÁRIAS (XIII) = (XII) | B120: =B117 -> 0 | C120: =C117 -> 0 | D120: 0 | F120: 0 | H120: 0
A121: FONTE:
A122: Departamento de Finanças
A125: LUIZ CARLOS DOS REIS NONATO | B125: CESAR ROBERTO TOQUETON | F125: MISLENE NAGATE ALVES
A126: Prefeito Municipal | B126: Contabilista - CRC 1SP164476/O-7 | F126: Responsável pelo Controle Interno

Sheet Anexo VI - Nominal
A3: MUNICÍPIO DE SANTO ANTONIO DO ARACANGUÁ
A4: RELATÓRIO RESUMIDO DA EXECUÇÃO ORÇAMENTÁRIA
A5: DEMONSTRATIVO DO RESULTADO NOMINAL
A6: ORÇAMENTOS FISCAL E DA SEGURIDADE SOCIAL
A7: PERÍODO:- Janeiro a Dezembro de 2012 - BIMESTRE:- Novembro - Dezembro
A9: RREO - ANEXO VI (LRF, art 53, inciso III) | G9: 1
D10: SALDO
A11: DÍVIDA FISCAL LÍQUIDA | B11: Em 31/DEZ/2011 | D11: Em 31/OUT/2012 | F11: Em 31/DEZ/2012
B12: (a) | D12: (b) | F12: (c)
A13: DÍVIDA CONSOLIDADA (I) | B13: 288426.6 | D13: 190172.54 | F13: 190172.54
A14: DEDUÇÕES (II) | B14: =B15+B16-B17 -> 2229467.3 | D14: =D15+D16-D17 -> 2731541.71 | F14: =F15+F16-F17 -> 1352067.47
A15: Disponibilidade de Caixa bruta | B15: 2307170.97 | D15: 2727413.05 | F15: 1750698.91
A16: Demais Haveres Financeiros | B16: 0 | D16: 24927.73 | F16: 4343.42
A17: (-) Restos a Pagar Processados (Exceto precatórios) | B17: 77703.67 | D17: 20799.07 | F17: 402974.86
A18: DÍVIDA CONSOLIDADA LÍQUIDA (III) = (I - II) | B18: =B13-B14 -> -1941040.7 | D18: =D13-D14 -> -2541369.17 | F18: =F13-F14 -> -1161894.93
A19: RECEITA DE PRIVATIZAÇÕES (IV) | B19: 0 | D19: 0 | F19: 0
A20: PASSIVOS RECONHECIDOS (V) | B20: 0 | D20: =D13 -> 190172.54 | F20: =F13 -> 190172.54
A21: DÍVIDA FISCAL LÍQUIDA (VI) = (III + IV - V) | B21: =B18+B19-B20 -> -1941040.7 | D21: =D18+D19-D20 -> -2731541.71 | F21: =F18+F19-F20 -> -1352067.47
B23: PERÍODO DE REFERÊNCIA
A24: RESULTADO NOMINAL | C24: No Bimestre | F24: Até o Bimestre
C25: (c-b) | F25: (c-a)
A26: VALOR | B26: =F21-D21 -> 1379474.24 | E26: =F21-B21 -> 588973.23
A28: DISCRIMINAÇÃO DA META FISCAL | E28: VALOR CORRENTE
A30: META DE RESULTADO NOMINAL FIXADA NO ANEXO DE METAS FISCAIS DA LDO P/ O EXERCÍCIO DE REFERÊNCIA
E31: 0
A32: REGIME PREVIDENCIÁRIO
D33: SALDO
A34: DÍVIDA FISCAL LÍQUIDA PREVIDENCIÁRIA | B34: Em 31/Dez/2011 | D34: Em 31/Out/2012 | F34: Em 31/Dez/2012
B35: (a) | D35: (b) | F35: (c)
A36: DÍVIDA CONSOLIDADA PREVIDENCIÁRIA (VII) | B36: NADA A DECLARAR | D36: NADA A DECLARAR | F36: NADA A DECLARAR
A37: Passivo Atuarial
A38: Demais Dívidas
A39: DEDUÇÕES (VIII)
A40: Disponibilidade de Caixa Bruta
A41: Investimentos
A42: Demais Haveres Financeiros
A43: (-) Restos a Pagar Processados
A44: DÍVIDA CONSOLIDADA LÍQUIDA PREVIDENCIÁRIA (IX) = (VII - VIII)
A45: PASSIVOS RECONHECIDOS (X)
A46: DÍVIDA FISCAL LÍQUIDA PREVIDENCIÁRIA (XI) = (IX - X)
A47: FONTE:
A48: Departamento de Finanças
A50: LUIZ CARLOS DOS REIS NONATO | B50: CESAR ROBERTO TOQUETON | E50: MISLENE NAGATE ALVES
A51: Prefeito Municipal | B51: CRC 1SP164476/O-7 | E51: Responsável pelo Controle Interno

Sheet Anexo VII - Primário (E, DF, M)
A3: MUNICÍPIO DE SANTO ANTONIO DO ARACANGUÁ
A4: RELATÓRIO RESUMIDO DA EXECUÇÃO ORÇAMENTÁRIA
A5: DEMONSTRATIVO DO RESULTADO PRIMÁRIO - ESTADOS, DISTRITO FEDERAL E MUNICÍPIOS
A6: ORÇAMENTOS FISCAL E DA SEGURIDADE SOCIAL
A7: PERÍODO:- Janeiro a Dezembro de 2012 - BIMESTRE:- Novembro - Dezembro
A9: RREO - ANEXO VII (LRF, art 53, inciso III) | E9: 1
B10: PREVISÃO | C10: RECEITAS REALIZADAS
A11: RECEITAS PRIMÁRIAS | B11: ATUALIZADA | C11: No Bimestre | D11: Até o Bimestre/ | E11: Até o Bimestre/
D12: 2012 | E12: 2011
A13: RECEITAS PRIMÁRIAS CORRENTES (I) | B13: =B14+B20+B23+B26+B31 -> 31990828.47 | C13: =C14+C20+C23+C26+C31 -> 5429808.86 | D13: =D14+D20+D23+D26+D31 -> 31521868.17 | E13: =E14+E20+E23+E26+E31 -> 29963408.64
A14: Receitas Tributárias | B14: =B15+B16+B17+B18+B19 -> 2310000 | C14: =C15+C16+C17+C18+C19 -> 332032.42 | D14: =D15+D16+D17+D18+D19 -> 1794883.14 | E14: =E15+E16+E17+E18+E19 -> 2448338.26
A15: IPTU | B15: 815000 | C15: 78400.49 | D15: 434571.52 | E15: 397569.15
A16: ISS | B16: 800000 | C16: 151024.97 | D16: 595544.46 | E16: 1392314.29
A17: ITBI | B17: 300000 | C17: 15579.11 | D17: 305892.01 | E17: 312105.98
A18: IRRF | B18: 310000 | C18: 73657.55 | D18: 366334.58 | E18: 287932.83
A19: Outras Receitas Tributárias | B19: 85000 | C19: 13370.3 | D19: 92540.57 | E19: 58416.01
A20: Receitas de Contribuições | B20: =B21+B22 -> 0 | C20: =C21+C22 -> 0 | D20: =D21+D22 -> 0 | E20: =E21+E22 -> 0
A21: Receitas Previdenciárias | B21: 0 | C21: 0 | D21: 0 | E21: 0
A22: Outras Receitas de Contribuições | B22: 0 | C22: 0 | D22: 0 | E22: 0
A23: Receita Patrimonial Líquida | B23: =B24+B25 -> 10000 | C23: =C24+C25 -> 156 | D23: =D24+D25 -> 4411 | E23: =E24+E25 -> 9502.6
A24: Receita Patrimonial | B24: 237000 | C24: 25471.61 | D24: 135353.85 | E24: 248119.94
A25: (-) Aplicações Financeiras | B25: -227000 | C25: -25315.61 | D25: -130942.85 | E25: -238617.34
A26: Transferências Correntes | B26: =B27+B28+B29+B30 -> 28810828.47 | C26: =C27+C28+C29+C30 -> 5031208.82 | D26: =D27+D28+D29+D30 -> 29196604.98 | E26: =E27+E28+E29+E30 -> 26945176.71
A27: FPM | B27: 5203750 | C27: 1083261.62 | D27: 4641817.54 | E27: 4510423.84
A28: ICMS | B28: 14124078.47 | C28: 2498730.23 | D28: 14681893.39 | E28: 13498020
A29: Convênios | B29: 217000 | C29: 38383.98 | D29: 229273.76 | E29: 302082
A30: Outras Transferências Correntes | B30: 9266000 | C30: 1410832.99 | D30: 9643620.29 | E30: 8634650.87
A31: Demais Receitas Correntes | B31: =B32+B33 -> 860000 | C31: =C32+C33 -> 66411.62 | D31: =D32+D33 -> 525969.05 | E31: =E32+E33 -> 560391.07
A32: Dívida Ativa | B32: 319000 | C32: 39932.04 | D32: 288700.81 | E32: 308936.58
A33: Diversas Receitas Correntes | B33: 541000 | C33: 26479.58 | D33: 237268.24 | E33: 251454.49
A34: RECEITAS DE CAPITAL (II) | B34: =B35+B36+B37+B38+B41 -> 2790293.28 | C34: =C35+C36+C37+C38+C41 -> 137282.02 | D34: =D35+D36+D37+D38+D41 -> 1703364.94 | E34: =E35+E36+E37+E38+E41 -> 1583269.05
A35: Operações de Crédito (III) | B35: 0 | C35: 0 | D35: 0 | E35: 0
A36: Amortização de Empréstimos (IV) | B36: 50000 | C36: 8955.62 | D36: 56690.82 | E36: 33790.73
A37: Alienação de Bens (V) | B37: 103000 | C37: 30826.4 | D37: 133556.4 | E37: 0
A38: Transferências de Capital | B38: =B39+B40 -> 2637293.28 | C38: =C39+C40 -> 97500 | D38: =D39+D40 -> 1513117.72 | E38: =E39+E40 -> 1549478.32
A39: Convênios | B39: 2637293.28 | C39: 97500 | D39: 1513117.72 | E39: 1549478.32
A40: Outras Transferências de Capital | B40: 0 | C40: 0 | D40: 0 | E40: 0
A41: Outras Receitas de Capital | B41: 0 | C41: 0 | D41: 0 | E41: 0
A42: RECEITAS PRIMÁRIAS DE CAPITAL (VI) = (II - III - IV - V) | B42: =B34-B35-B36-B37 -> 2637293.28 | C42: =C34-C35-C36-C37 -> 97500 | D42: =D34-D35-D36-D37 -> 1513117.72 | E42: =E34-E35-E36-E37 -> 1549478.32
A43: RECEITA PRIMÁRIA TOTAL (VII) = (I + VI) | B43: =B13+B42 -> 34628121.75 | C43: =C13+C42 -> 5527308.86 | D43: =D13+D42 -> 33034985.89 | E43: =E13+E42 -> 31512886.96
B45: DOTAÇÃO | C45: DESPESAS LIQUIDADAS
A46: DESPESAS PRIMÁRIAS | B46: ATUALIZADA | C46: No Bimestre | D46: Até o Bimestre/ | E46: Até o Bimestre/
D47: 2012 | E47: 2011
A48: DESPESAS CORRENTES (VIII) | B48: =B49+B50+B51 -> 31958500 | C48: =C49+C50+C51 -> 5679287.22 | D48: =D49+D50+D51 -> 31040302.28 | E48: =E49+E50+E51 -> 27076477.66
A49: Pessoal e Encargos Sociais | B49: 18550200 | C49: 3842115.78 | D49: 18306640.64 | E49: 15777292.26
A50: Juros e Encargos da Dívida (IX) | B50: 0 | C50: 0 | D50: 0 | E50: 0
A51: Outras Despesas Correntes | B51: 13408300 | C51: 1837171.44 | D51: 12733661.64 | E51: 11299185.4
A52: DESPESAS PRIMÁRIAS CORRENTES (X) = (VIII - IX) | B52: =B48-B50 -> 31958500 | C52: =C48-C50 -> 5679287.22 | D52: =D48-D50 -> 31040302.28 | E52: =E48-E50 -> 27076477.66
A53: DESPESAS DE CAPITAL (XI) | B53: =B54+B55+B59 -> 4021512.45 | C53: =C54+C55+C59 -> 1024824.39 | D53: =D54+D55+D59 -> 2824279.04 | E53: =E54+E55+E59 -> 3791118
A54: Investimentos | B54: 3901912.45 | C54: 1004779.18 | D54: 2705979.77 | E54: 3576734.54
A55: Inversões Financeiras | B55: =B56+B57+B58 -> 100 | C55: =C56+C57+C58 -> 0 | D55: =D56+D57+D58 -> 0 | E55: =E56+E57+E58 -> 7345.32
A56: Concessão de Empréstimos (XII) | B56: 0 | C56: 0 | D56: 0 | E56: 0
A57: Aquisição de Título de Capital já Integralizado (XIII) | B57: 0 | C57: 0 | D57: 0 | E57: 0
A58: Demais Inversões Financeiras | B58: 100 | C58: 0 | D58: 0 | E58: 7345.32
A59: Amortização da Dívida (XIV) | B59: 119500 | C59: 20045.21 | D59: 118299.27 | E59: 207038.14
A60: DESPESAS PRIMÁRIAS DE CAPITAL (XV) = (XI - XII - XIII - XIV) | B60: =B53-B56-B57-B59 -> 3902012.45 | C60: =C53-C56-C57-C59 -> 1004779.18 | D60: =D53-D56-D57-D59 -> 2705979.77 | E60: =E53-E56-E57-E59 -> 3584079.86
A61: RESERVA DE CONTINGÊNCIA (XVI) | B61: 0 | C61: 0 | D61: 0 | E61: 0
A62: RESERVA DO RPPS (XVII) | B62: 0 | C62: 0 | D62: 0 | E62: 0
A63: DESPESA PRIMÁRIA TOTAL (XVIII) = (X + XV + XVI + XVII) | B63: =B52+B60+B61+B62 -> 35860512.45 | C63: =C52+C60+C61+C62 -> 6684066.4 | D63: =D52+D60+D61+D62 -> 33746282.05 | E63: =E52+E60+E61+E62 -> 30660557.52
A65: RESULTADO PRIMÁRIO (XIX) = (VII - XVIII) | B65: =B43-B63 -> -1232390.7 | C65: =C43-C63 -> -1156757.54 | D65: =D43-D63 -> -711296.16 | E65: =E43-E63 -> 852329.44
A67: SALDO DE EXERCÍCIOS ANTERIORES | B67: – | C67: – | D67: 1017188.16 | E67: -
A69: DISCRIMINAÇÃO DA META FISCAL | D69: VALOR CORRENTE
A71: META DE RESULTADO PRIMÁRIO FIXADA NO ANEXO DE METAS FISCAIS DA LDO P/ O EXERCÍCIO DE REFERÊNCIA | D71: 25000
A72: FONTE: Departamento de Finanças
A75: LUIZ CARLOS DOS REIS NONATO | B75: CESAR ROBERTO TOQUETON | D75: MISLENE NAGATE ALVES
A76: Prefeito Municipal | B76: CRC 1SP164476/O-7 | D76: Responsável pelo Controle Interno

Sheet Anexo IX - RP
A3: MUNICÍPIO DE SANTO ANTONIO DO ARACANGUÁ
A4: RELATÓRIO RESUMIDO DA EXECUÇÃO ORÇAMENTÁRIA
A5: DEMONSTRATIVO DOS RESTOS A PAGAR POR PODER E ÓRGÃO
A6: ORÇAMENTOS FISCAL E DA SEGURIDADE SOCIAL
A7: PERÍODO:- Janeiro a Dezembro de 2012 - BIMESTRE:- Novembro - Dezembro
A9: RREO - ANEXO IX (LRF, art. 53, inciso V) | K9: 1
B10: RESTOS A PAGAR PROCESSADOS | G10: RESTOS A PAGAR NÃO PROCESSADOS
B11: Inscritos | G11: Inscritos
A12: PODER/ÓRGÃO | B12: Em | C12: Em 31 de | G12: Em | H12: Em 31 de
B13: Exercícios | C13: dezembro de | D13: Cancelados | E13: Pagos | F13: A Pagar | G13: Exercícios | H13: dezembro de | I13: Cancelados | J13: Pagos | K13: A Pagar
B14: Anteriores | C14: 2012 | G14: Anteriores | H14: 2012
A16: RESTOS A PAGAR (EXCETO INTRA-ORÇAMENTÁRIOS) (I) | B16: =B18+B22 -> 77703.67 | C16: 402974.86 | D16: 0 | E16: 77703.67 | F16: 402974.86 | G16: 1165322.65 | H16: 85816.57 | I16: 276801.58 | J16: 689043.16 | K16: 285294.48
A18: EXECUTIVO | B18: =B19+B20 -> 77257.6 | C18: 402974.86 | D18: 0 | E18: 77257.6 | F18: 402974.86 | G18: 1154264.53 | H18: 85816.57 | I18: 276801.58 | J18: 677985.04 | K18: 285294.48
A19: Prefeitura Municipal……………………………………………… | B19: 77257.6 | C19: 402974.86 | D19: 0 | E19: 77257.6 | F19: =B19+C19-D19-E19 -> 402974.86 | G19: 1154264.53 | H19: 85816.57 | I19: 276801.58 | J19: 677985.04 | K19: =G19+H19-I19-J19 -> 285294.48
A22: LEGISLATIVO | B22: =B23 -> 446.07 | C22: 0 | D22: 0 | E22: 446.07 | F22: 0 | G22: 11058.12 | H22: 0 | I22: 0 | J22: 11058.12 | K22: 0
A23: Câmara Municipal………………………………………………… | B23: 446.07 | C23: 0 | D23: 0 | E23: 446.07 | F23: =B23+C23-D23-E23 -> 0 | G23: 11058.12 | H23: 0 | I23: 0 | J23: 11058.12 | K23: =G23+H23-I23-J23 -> 0
A25: RESTOS A PAGAR (INTRA-ORÇAMENTÁRIOS) (II) | B25: =B26+B27 -> 0 | C25: 0 | D25: 0 | E25: 0 | F25: 0 | G25: 0 | H25: 0 | I25: 0 | J25: 0 | K25: 0
A26: Executivo Municipal…………………………………………….. | B26: 0 | C26: 0 | D26: 0 | E26: 0 | F26: =B26+C26-D26-E26 -> 0 | G26: 0 | H26: 0 | I26: 0 | J26: 0 | K26: 0
A27: Legislativo Municipal……………………………………………. | B27: 0 | C27: 0 | D27: 0 | E27: 0 | F27: =B27+C27-D27-E27 -> 0 | G27: 0 | H27: 0 | I27: 0 | J27: 0 | K27: 0
A29: TOTAL (III) = (I + II) | B29: =B16+B25 -> 77703.67 | C29: 402974.86 | D29: 0 | E29: 77703.67 | F29: 402974.86 | G29: 1165322.65 | H29: 85816.57 | I29: 276801.58 | J29: 689043.16 | K29: 285294.48
A30: FONTE: Departamento de Finanças
A32: LUIZ CARLOS DOS REIS NONATO | C32: CESAR ROBERTO TOQUETON | H32: MISLENE NAGATE ALVES
A33: Prefeito Municipal | C33: Contabilista - CRC 1SP164476/O-7 | H33: Responsável pelo Controle Interno

Sheet Anexo XI - Op Crédito
A2: MUNICÍPIO DE SANTO ANTONIO DO ARACANGUÁ
A3: RELATÓRIO RESUMIDO DA EXECUÇÃO ORÇAMENTÁRIA
A4: DEMONSTRATIVO DAS RECEITAS DE OPERAÇÕES DE CRÉDITO E DESPESAS DE CAPITAL
A5: ORÇAMENTOS FISCAL E DA SEGURIDADE SOCIAL
A6: PERÍODO:- Janeiro a Dezembro de 2012 - BIMESTRE:- Novembro - Dezembro
A8: RREO – ANEXO XI (LRF, art.53, § 1º, inciso I) | H8: 1
B9: PREVISÃO ATUALIZADA | D9: RECEITAS REALIZADAS | H9: SALDO NÃO
A10: RECEITAS | B10: (a) | D10: Até o Bimestre | H10: REALIZADO
D11: (b) | H11: (c) = (a – b)
A12: RECEITAS DE OPERAÇÕES DE CRÉDITO (I) | B12: 0 | D12: 0 | H12: 0
D14: DESPESAS EXECUTADAS
D15: Até o Bimestre
B16: DOTAÇÃO ATUALIZADA | H16: SALDO NÃO
A17: DESPESAS | H17: EXECUTADO
B19: (d) | D19: LIQUIDADAS | F19: INSCRITAS EM RESTOS A PAGAR NÃO PROCESSADOS
F20: (f) | H20: (g) = (d – (e+f))
D23: (e)
A24: DESPESAS DE CAPITAL | B24: 0 | D24: 0 | F24: 0 | H24: 0
A25: (-) Incentivos Fiscais a Contribuinte | B25: 0 | D25: 0 | F25: 0 | H25: 0
A26: (-) Incentivos Fiscais a Contribuinte por | B26: 0 | D26: 0 | F26: 0 | H26: 0
A27: Instituições Financeiras
A28: DESPESA DE CAPITAL LÍQUIDA (II) | B28: 0 | D28: 0 | F28: 0 | H28: 0
A30: RESULTADO PARA APURAÇÃO DA
A31: REGRA DE OURO (III) = (I – II) | B31: 0 | D31: 0 | H31: 0
A32: FONTE: Departamento de Finanças
A33: Notas:
A34: 1 < Operações de Crédito descritas na CF, art. 167, inciso III>
A35: 2 Durante o exercício, somente as despesas liquidadas são consideradas executadas. No encerramento do exercício, as despesas não liquidadas inscritas em restos a pagar não-processados são também consideradas executadas. Dessa forma, para maior transparência, as despesas executadas estão segregadas em:
A36: a) Despesas liquidadas, consideradas aquelas em que houve a entrega do material ou serviço, nos termos do art. 63 da Lei 4.320/64;
A37: b) Despesas empenhadas, mas não liquidadas, inscritas em Restos a Pagar não-processados, consideradas liquidadas no encerramento do exercício, por força do art.35, inciso II da Lei 4.320/64.
A40: LUIZ CARLOS DOS REIS NONATO | B40: CESAR ROBERTO TOQUETON | E40: MISLENE NAGATE ALVES
A41: Prefeito Municipal | B41: CRC 1SP164476/O-7 | E41: Responsável pelo Controle Interno

Sheet Anexo XIII - Projeção RPPS
A3: MUNICÍPIO DE SANTO ANTONIO DO ARACANGUÁ
A4: RELATÓRIO RESUMIDO DA EXECUÇÃO ORÇAMENTÁRIA
A5: DEMONSTRATIVO DA PROJEÇÃO ATUARIAL DO REGIME PRÓPRIO DE PREVIDÊNCIA DOS SERVIDORES
A6: ORÇAMENTO DA SEGURIDADE SOCIAL
A7: PERÍODO:- Janeiro a Dezembro de 2012 - BIMESTRE:- Novembro - Dezembro
A9: RREO – ANEXO XIII (LRF, art. 53, § 1º, inciso II) | J9: 1
A10: EXERCÍCIO | D10: RECEITAS | F10: DESPESAS | H10: RESULTADO | J10: SALDO FINANCEIRO
D11: PREVIDENCIÁRIAS | F11: PREVIDENCIÁRIAS | H11: PREVIDENCIÁRIO | J11: DO EXERCÍCIO
D12: (a) | F12: (b) | H12: (c) = (a - b) | J12: (d) = (“d” exerc. Anterior) + (c)
A13: 2013
A14: 2014
A15: 2015
A16: 2016
A17: 2017
A18: 2018
A19: 2019
A20: 2020
A21: 2021 | F21: NADA A DECLARAR
A22: 2022
A23: 2023
A24: 2024
A25: 2025
A26: 2026
A27: 2027
A28: 2028
A29: 2029
A30: 2030
A31: 2031
A32: 2032
A33: 2033
A34: 2034
A35: 2035
A36: 2036
A37: 2037
A38: 2038
A39: 2039
A40: 2040
A41: 2041
A42: 2042
A43: 2043
A44: 2044
A45: 2045
A46: 2046
A47: 2047
A48: FONTES:
A49: Notas: 1 Projeção atuarial elaborada em ___/ ___/ ___ e oficialmente enviada para o Ministério da Previdência Social – MPS.
A50: 2 Atuário:-
A54: LUIZ CARLOS DOS REIS NONATO | F54: CESAR ROBERTO TOQUETON | I54: MISLENE NAGATE ALVES
A55: Prefeito Municipal | F55: CRC 1SP164476/O-7 | I55: Responsável pelo Controle Interno

Sheet Anexo XIV - Alienação
A3: MUNICÍPIO DE SANTO ANTONIO DO ARACANGUÁ
A4: RELATÓRIO RESUMIDO DA EXECUÇÃO ORÇAMENTÁRIA
A5: DEMONSTRATIVO DA RECEITA DE ALIENAÇÃO DE ATIVOS E APLICAÇÃO DOS RECURSOS
A6: ORÇAMENTOS FISCAL E DA SEGURIDADE SOCIAL
A7: PERÍODO:- Janeiro a Dezembro de 2012 - BIMESTRE:- Novembro - Dezembro
A9: RREO – ANEXO XIV (LRF, art. 53, § 1º, inciso III ) | E9: 1
A10: RECEITAS | B10: PREVISÃO ATUALIZADA | C10: RECEITAS REALIZADAS | E10: SALDO A REALIZAR
B11: (a) | C11: (b) | E11: (c) = (a-b)
A12: RECEITAS DE CAPITAL - ALIENAÇÃO DE ATIVOS (I)
A13: Alienação de Bens Móveis | B13: 103000 | C13: 133556.4 | E13: 0
A14: Alienação de Bens Imóveis | B14: 0 | C14: 0 | E14: 0
B16: DOTAÇÃO | C16: DESPESAS EXECUTADAS | E16: SALDO A EXECUTAR
B17: ATUALIZADA | C17: Até o Bimestre
A18: DESPESAS | C18: LIQUIDADAS | D18: INSCRITAS EM RESTOS A
D19: PAGAR NÃO PROCESSADOS
B20: (d) | C20: (e) | D20: (f) | E20: (g) = (d-(e+f))
A21: APLICAÇÃO DOS RECURSOS DA ALIENAÇÃO DE ATIVOS (II)
A22: Despesas de Capital
A23: Investimentos | B23: 140000 | C23: 133556.4 | D23: 0 | E23: 0
A24: Inversões Financeiras | B24: 0 | C24: 0 | D24: 0 | E24: 0
A25: Amortização da Dívida | B25: 0 | C25: 0 | D25: 0 | E25: 0
A26: Despesas Correntes dos Regimes de Previdência | B26: 0 | C26: 0 | D26: 0 | E26: 0
A27: Regime Geral da Previdência Social | B27: 0 | C27: 0 | D27: 0 | E27: 0
A28: Regime Próprio dos Servidores Públicos | B28: 0 | C28: 0 | D28: 0 | E28: 0
A30: SALDO FINANCEIRO A APLICAR | B30: 2010 | C30: 2011 | E30: SALDO ATUAL
B31: (h) | C31: (i) = (Ib – (IIe + IIf)) | E31: (j) = (IIIh + IIIi)
A32: VALOR (III) | B32: 0 | C32: 0 | E32: 0
A33: FONTE: Departamento de Finanças
A34: Nota: Durante o exercício, somente as despesas liquidadas são consideradas executadas. No encerramento do exercício, as despesas não liquidadas inscritas em restos a pagar não processados são
A35: também consideradas executadas. Dessa forma, para maior transparência, as despesas executadas estão segregadas em :
A36: . a) Despesas liquidadas, consideradas aquelas em que houve a entrega do material ou serviço, nos termos do art. 63 da Lei 4.320/64;
A37: . b) Despesas empenhadas mas não liquidadas, inscritas em Restos a Pagar não processados, consideradas liquidadas no encerramento do exercício, por força do art.35, inciso II da Lei 4.320/64.
A42: LUIZ CARLOS DOS REIS NONATO | B42: CESAR ROBERTO TOQUETON | D42: MISLENE NAGATE ALVES
A43: Prefeito Municipal | B43: CRC 1SP164476/O-7 | D43: Responsável pelo Controle Interno
